[Event "Nové Hrady - Open"]
[Site "Nové Hrady, Czech Republic"]
[Date "2024.08.16"]
[Round "6.4"]
[White "Steinbauer, Sebastián"]
[Black "Kaiser, Richard"]
[Result "0-1"]
[TimeControl "2x90min+30s"]
[WhiteFideId "399272"]
[BlackFideId "4651286"]
[WhiteElo "1990"]
[BlackElo "2019"]

1. e4 {[%clk 01:30:58]} {[%emt 00:00:03]} c5 {[%clk 01:30:48]} {[%emt
00:00:13]} 2. d4 {[%clk 01:31:19]} {[%emt 00:00:09]} cxd4 {[%clk 01:31:12]}
{[%emt 00:00:05]} 3. c3 {[%clk 01:31:46]} {[%emt 00:00:03]} dxc3 {[%clk
01:31:28]} {[%emt 00:00:13]} 4. Nxc3 {[%clk 01:32:10]} {[%emt 00:00:07]} e6
{[%clk 01:31:53]} {[%emt 00:00:05]} 5. Nf3 {[%clk 01:32:37]} {[%emt 00:00:03]}
Nc6 {[%clk 01:31:48]} {[%emt 00:00:35]} 6. Be2 {[%clk 01:33:03]} {[%emt
00:00:04]} Bb4 {[%clk 01:31:37]} {[%emt 00:00:42]} 7. O-O {[%clk 01:33:26]}
{[%emt 00:00:08]} Nge7 {[%clk 01:32:04]} 8. Bf4 {[%clk 01:31:54]} {[%emt
00:02:03]} Ng6 {[%clk 01:30:04]} {[%emt 00:02:29]} 9. Bg3 {[%clk 01:31:08]}
{[%emt 00:01:16]} a6 {[%clk 01:29:28]} {[%emt 00:01:07]} 10. Qb3 {[%clk
01:28:37]} {[%emt 00:03:01]} O-O {[%clk 01:28:37]} {[%emt 00:01:20]} 11. Rfd1
{[%clk 01:28:58]} {[%emt 00:00:09]} Qa5 {[%clk 01:22:27]} {[%emt 00:06:40]} 12.
Rac1 {[%clk 01:28:09]} {[%emt 00:01:19]} f5 {[%clk 01:18:14]} {[%emt 00:04:43]}
13. exf5 {[%clk 01:08:54]} {[%emt 00:19:44]} Rxf5 {[%clk 01:18:02]} {[%emt
00:00:43]} 14. Bd3 {[%clk 00:56:32]} {[%emt 00:12:52]} Rxf3 {[%clk 01:07:31]}
{[%emt 00:11:00]} 15. gxf3 {[%clk 00:51:02]} {[%emt 00:06:00]} Nd4 {[%clk
01:07:50]} {[%emt 00:00:12]} 16. Qc4 {[%clk 00:51:15]} {[%emt 00:00:16]} Nxf3+
{[%clk 01:07:21]} {[%emt 00:01:00]} 17. Kg2 {[%clk 00:50:26]} {[%emt 00:01:19]}
d5 {[%clk 01:06:27]} {[%emt 00:01:23]} 18. Qc7 {[%clk 00:44:57]} {[%emt
00:06:00]} Ngh4+ {[%clk 01:03:39]} {[%emt 00:03:18]} 19. Kh1 {[%clk 00:36:23]}
{[%emt 00:09:04]} Qxc7 {[%clk 01:02:22]} {[%emt 00:01:48]} 20. Bxc7 {[%clk
00:36:45]} {[%emt 00:00:07]} Bd7 {[%clk 00:55:10]} {[%emt 00:07:43]} 21. Bg3
{[%clk 00:26:26]} {[%emt 00:10:49]} Bc6 {[%clk 00:54:42]} {[%emt 00:00:57]} 22.
Bxh4 {[%clk 00:24:32]} {[%emt 00:02:24]} Nxh4 {[%clk 00:54:59]} {[%emt
00:00:13]} 23. Kg1 {[%clk 00:20:35]} {[%emt 00:04:26]} Nf3+ {[%clk 00:52:29]}
{[%emt 00:03:00]} 24. Kg2 {[%clk 00:15:30]} {[%emt 00:05:35]} Rf8 {[%clk
00:52:33]} {[%emt 00:00:26]} 25. Ne2 {[%clk 00:13:51]} {[%emt 00:02:10]} e5
{[%clk 00:48:30]} {[%emt 00:04:33]} 26. Ng3 {[%clk 00:13:40]} {[%emt 00:00:41]}
g6 {[%clk 00:48:21]} {[%emt 00:00:39]} 27. a3 {[%clk 00:12:32]} {[%emt
00:01:38]} Ba5 {[%clk 00:43:31]} {[%emt 00:05:19]} 28. Bxa6 {[%clk 00:10:39]}
{[%emt 00:02:23]} Nh4+ {[%clk 00:42:22]} {[%emt 00:01:40]} 29. Kf1 {[%clk
00:05:22]} {[%emt 00:05:46]} Bb6 {[%clk 00:42:39]} {[%emt 00:00:14]} 30. Rd2
{[%clk 00:04:08]} {[%emt 00:01:43]} Bd7 {[%clk 00:38:00]} {[%emt 00:05:09]} 31.
Bxb7 {[%clk 00:02:45]} {[%emt 00:01:54]} Bb5+ {[%clk 00:31:52]} {[%emt
00:06:39]} 32. Ke1 {[%clk 00:01:33]} {[%emt 00:01:41]} Nf3+ {[%clk 00:30:00]}
{[%emt 00:02:21]} 33. Kd1 {[%clk 00:01:54]} {[%emt 00:00:10]} Ba4+ {[%clk
00:26:06]} {[%emt 00:04:24]} 34. Rdc2 {[%clk 00:00:33]} {[%emt 00:01:50]} Rd8
{[%clk 00:25:27]} {[%emt 00:01:09]} 35. Nf1 {[%clk 00:00:33]} {[%emt 00:00:31]}
Bxf2 {[%clk 00:18:45]} {[%emt 00:07:12]} 36. Ke2 {[%clk 00:00:31]} {[%emt
00:00:30]} Nd4+ {[%clk 00:19:11]} {[%emt 00:00:05]} 37. Kxf2 {[%clk 00:01:00]}
{[%emt 00:00:02]} Nxc2 {[%clk 00:19:20]} {[%emt 00:00:21]} 38. Nd2 {[%clk
00:00:32]} {[%emt 00:00:58]} Rf8+ {[%clk 00:16:21]} {[%emt 00:03:29]} 39. Kg3
{[%clk 00:00:33]} {[%emt 00:00:29]} Ne3 {[%clk 00:16:33]} {[%emt 00:00:18]} 40.
Rc5 {[%clk 00:00:32]} {[%emt 00:00:30]} Rd8 {[%clk 00:14:52]} {[%emt 00:02:11]}
41. b3 {[%clk 00:00:35]} {[%emt 00:00:28]} Be8 {[%clk 00:15:06]} {[%emt
00:00:16]} 42. Kf3 {[%clk 00:00:52]} {[%emt 00:00:12]} Nf5 {[%clk 00:11:47]}
{[%emt 00:03:49]} 43. Rxd5 {[%clk 00:00:34]} {[%emt 00:00:49]} Nd6 {[%clk
00:11:49]} {[%emt 00:00:29]} 44. Ne4 {[%clk 00:00:31]} {[%emt 00:00:33]} Nxb7
{[%clk 00:12:07]} {[%emt 00:00:11]} 45. Rxd8 {[%clk 00:00:43]} {[%emt
00:00:17]} Nxd8 {[%clk 00:12:34]} {[%emt 00:00:04]} 46. Nf6+ {[%clk 00:00:54]}
{[%emt 00:00:19]} Kf7 {[%clk 00:13:00]} {[%emt 00:00:04]} 47. Nxe8 {[%clk
00:01:07]} {[%emt 00:00:16]} Kxe8 {[%clk 00:13:20]} {[%emt 00:00:11]} 48. Ke4
{[%clk 00:01:31]} {[%emt 00:00:06]} Nf7 {[%clk 00:12:23]} {[%emt 00:01:27]} 49.
a4 {[%clk 00:01:38]} {[%emt 00:00:24]} Kd7 {[%clk 00:12:48]} {[%emt 00:00:04]}
50. Kd5 {[%clk 00:01:50]} {[%emt 00:00:17]} g5 {[%clk 00:13:07]} {[%emt
00:00:11]} 51. a5 {[%clk 00:02:05]} {[%emt 00:00:17]} g4 {[%clk 00:11:25]}
{[%emt 00:02:11]} 52. b4 {[%clk 00:02:14]} {[%emt 00:00:21]} h5 {[%clk
00:11:05]} {[%emt 00:00:49]} 53. b5 {[%clk 00:01:40]} {[%emt 00:01:05]} Kc7
{[%clk 00:11:26]} {[%emt 00:00:09]} 54. Ke4 {[%clk 00:01:23]} {[%emt 00:00:47]}
h4 {[%clk 00:11:37]} {[%emt 00:00:18]} 55. Kd3 {[%clk 00:01:02]} {[%emt
00:00:51]} g3 {[%clk 00:11:30]} {[%emt 00:00:37]} 0-1

[Event "Nové Hrady - Open"]
[Site "Nové Hrady, Czech Republic"]
[Date "2024.08.16"]
[Round "6.5"]
[White "Picek, Miroslav"]
[Black "Borecký, Andrej"]
[Result "0-1"]
[TimeControl "2x90min+30s"]
[WhiteFideId "325198"]
[BlackFideId "23752670"]
[WhiteElo "1922"]
[BlackElo "1672"]

1. e4 {[%clk 01:30:50]} {[%emt 00:00:09]} c5 {[%clk 01:30:26]} {[%emt
00:00:34]} 2. Nf3 {[%clk 01:31:07]} {[%emt 00:00:14]} Nc6 {[%clk 01:30:45]}
{[%emt 00:00:12]} 3. d4 {[%clk 01:31:27]} {[%emt 00:00:10]} cxd4 {[%clk
01:30:57]} {[%emt 00:00:17]} 4. Nxd4 {[%clk 01:31:49]} {[%emt 00:00:09]} Nf6
{[%clk 01:30:14]} {[%emt 00:01:13]} 5. Nc3 {[%clk 01:32:01]} {[%emt 00:00:18]}
e5 {[%clk 01:30:15]} {[%emt 00:00:28]} 6. Ndb5 {[%clk 01:30:54]} {[%emt
00:01:37]} d6 {[%clk 01:30:32]} {[%emt 00:00:14]} 7. a4 {[%clk 01:29:47]}
{[%emt 00:01:37]} a6 {[%clk 01:29:35]} {[%emt 00:01:27]} 8. Na3 {[%clk
01:30:12]} {[%emt 00:00:05]} Bg4 {[%clk 01:29:10]} {[%emt 00:00:55]} 9. f3
{[%clk 01:30:01]} {[%emt 00:00:40]} Be6 {[%clk 01:27:39]} {[%emt 00:02:01]} 10.
Be3 {[%clk 01:30:03]} {[%emt 00:00:28]} Be7 {[%clk 01:23:37]} {[%emt 00:04:32]}
11. Qd2 {[%clk 01:25:34]} {[%emt 00:04:58]} O-O {[%clk 01:19:10]} {[%emt
00:04:58]} 12. Nd5 {[%clk 01:22:04]} {[%emt 00:04:00]} Bxd5 {[%clk 01:07:22]}
{[%emt 00:12:18]} 13. exd5 {[%clk 01:21:45]} {[%emt 00:00:49]} Nd4 {[%clk
01:07:24]} {[%emt 00:00:28]} 14. Bxd4 {[%clk 01:10:51]} {[%emt 00:11:24]} exd4
{[%clk 01:07:40]} {[%emt 00:00:14]} 15. Bc4 {[%clk 01:10:23]} {[%emt 00:00:58]}
b5 {[%clk 01:03:42]} {[%emt 00:04:28]} 16. axb5 {[%clk 00:58:09]} {[%emt
00:12:43]} axb5 {[%clk 01:03:53]} {[%emt 00:00:19]} 17. Bb3 {[%clk 00:50:58]}
{[%emt 00:07:41]} Ne4 {[%clk 00:42:27]} {[%emt 00:21:57]} 18. fxe4 {[%clk
00:45:30]} {[%emt 00:05:58]} Bg5 {[%clk 00:41:18]} {[%emt 00:01:38]} 19. Qxd4
{[%clk 00:45:39]} {[%emt 00:00:22]} Bf6 {[%clk 00:41:05]} {[%emt 00:00:43]} 20.
Qb4 {[%clk 00:45:28]} {[%emt 00:00:41]} Bxb2 {[%clk 00:33:01]} {[%emt
00:08:35]} 21. O-O {[%clk 00:45:18]} {[%emt 00:00:40]} Bxa1 {[%clk 00:32:30]}
{[%emt 00:01:01]} 22. Rxa1 {[%clk 00:45:45]} Qb6+ {[%clk 00:32:41]} {[%emt
00:00:20]} 23. Kh1 {[%clk 00:45:12]} {[%emt 00:01:03]} Ra6 {[%clk 00:31:15]}
{[%emt 00:01:56]} 24. Rf1 {[%clk 00:43:16]} {[%emt 00:02:26]} Rfa8 {[%clk
00:20:16]} {[%emt 00:11:30]} 25. Qxb5 {[%clk 00:40:24]} {[%emt 00:03:21]} Qd4
{[%clk 00:18:29]} {[%emt 00:02:17]} 26. Nb1 {[%clk 00:26:42]} {[%emt 00:14:12]}
Ra1 {[%clk 00:12:44]} {[%emt 00:06:15]} 27. Qd3 {[%clk 00:21:56]} {[%emt
00:05:15]} Qxd3 {[%clk 00:11:35]} {[%emt 00:01:40]} 28. cxd3 {[%clk 00:21:58]}
{[%emt 00:00:28]} Rb8 {[%clk 00:11:51]} {[%emt 00:00:14]} 29. Rc1 {[%clk
00:15:21]} {[%emt 00:07:07]} Kf8 {[%clk 00:11:04]} {[%emt 00:01:17]} 30. Bc2
{[%clk 00:14:59]} {[%emt 00:00:53]} Rc8 {[%clk 00:10:57]} {[%emt 00:00:37]} 31.
h3 {[%clk 00:12:13]} {[%emt 00:03:15]} Ra2 {[%clk 00:10:04]} {[%emt 00:01:23]}
32. Nd2 {[%clk 00:12:29]} {[%emt 00:00:13]} Rcxc2 {[%clk 00:09:05]} {[%emt
00:01:30]} 33. Rxc2 {[%clk 00:12:55]} {[%emt 00:00:04]} Rxc2 {[%clk 00:09:27]}
{[%emt 00:00:08]} 34. Nf3 {[%clk 00:13:20]} {[%emt 00:00:04]} Ke7 {[%clk
00:06:30]} {[%emt 00:03:27]} 35. Kg1 {[%clk 00:11:13]} {[%emt 00:02:37]} f5
{[%clk 00:02:56]} {[%emt 00:04:05]} 36. Nd4 {[%clk 00:10:38]} {[%emt 00:01:05]}
Rc1+ {[%clk 00:03:11]} {[%emt 00:00:14]} 37. Kf2 {[%clk 00:10:59]} {[%emt
00:00:09]} fxe4 {[%clk 00:02:23]} {[%emt 00:01:18]} 38. Nf5+ {[%clk 00:11:09]}
{[%emt 00:00:21]} Kf6 {[%clk 00:01:52]} {[%emt 00:01:00]} 39. Nxd6 {[%clk
00:04:20]} {[%emt 00:07:19]} exd3 {[%clk 00:01:28]} {[%emt 00:00:55]} 40. Ke3
{[%clk 00:04:39]} {[%emt 00:00:11]} Ke5 {[%clk 00:01:04]} {[%emt 00:00:53]} 41.
Ne8 {[%clk 00:04:34]} {[%emt 00:00:35]} Kxd5 {[%clk 00:00:53]} {[%emt
00:00:42]} 42. Kxd3 {[%clk 00:04:36]} {[%emt 00:00:28]} Rg1 {[%clk 00:01:00]}
{[%emt 00:00:23]} 43. Nxg7 {[%clk 00:01:49]} {[%emt 00:03:17]} Rxg2 {[%clk
00:01:23]} {[%emt 00:00:08]} 44. Nh5 {[%clk 00:02:08]} {[%emt 00:00:09]} Ke5
{[%clk 00:01:31]} {[%emt 00:00:22]} 45. Ke3 {[%clk 00:02:26]} {[%emt 00:00:11]}
Kf5 {[%clk 00:00:48]} {[%emt 00:01:14]} 46. Kf3 {[%clk 00:02:53]} {[%emt
00:00:03]} Ra2 {[%clk 00:00:34]} {[%emt 00:00:44]} 47. Kg3 {[%clk 00:01:06]}
{[%emt 00:02:17]} Kg5 {[%clk 00:00:37]} {[%emt 00:00:28]} 48. Ng7 {[%clk
00:01:24]} {[%emt 00:00:12]} Ra3+ {[%clk 00:00:59]} {[%emt 00:00:08]} 49. Kh2
{[%clk 00:01:40]} {[%emt 00:00:13]} Ra2+ {[%clk 00:01:08]} {[%emt 00:00:22]} 50.
Kg3 {[%clk 00:02:03]} {[%emt 00:00:07]} Ra3+ {[%clk 00:01:33]} {[%emt
00:00:05]} 51. Kh2 {[%clk 00:02:27]} {[%emt 00:00:06]} Ra6 {[%clk 00:00:54]}
{[%emt 00:01:08]} 52. Ne8 {[%clk 00:02:44]} {[%emt 00:00:14]} Kf4 {[%clk
00:01:00]} {[%emt 00:00:24]} 53. Ng7 {[%clk 00:00:59]} {[%emt 00:02:15]} Ra2+
{[%clk 00:01:12]} {[%emt 00:00:18]} 54. Kg1 {[%clk 00:00:53]} {[%emt 00:00:35]}
Kg3 {[%clk 00:01:26]} {[%emt 00:00:16]} 55. Nh5+ {[%clk 00:00:55]} {[%emt
00:00:29]} Kxh3 {[%clk 00:01:31]} {[%emt 00:00:25]} 0-1

[Event "Nové Hrady - Open"]
[Site "Nové Hrady, Czech Republic"]
[Date "2024.08.16"]
[Round "6.6"]
[White "Hajicek, Matyas"]
[Black "Rendl, Luboš"]
[Result "0-1"]
[TimeControl "2x90min+30s"]
[WhiteFideId "23764481"]
[BlackFideId "23750197"]
[WhiteElo "1653"]
[BlackElo "1848"]

1. e4 {[%clk 01:30:58]} {[%emt 00:00:02]} c5 {[%clk 01:30:52]} {[%emt
00:00:08]} 2. d4 {[%clk 01:31:23]} {[%emt 00:00:06]} cxd4 {[%clk 01:30:56]}
{[%emt 00:00:25]} 3. c3 {[%clk 01:31:51]} {[%emt 00:00:02]} dxc3 {[%clk
01:30:38]} {[%emt 00:00:47]} 4. Nxc3 {[%clk 01:32:18]} {[%emt 00:00:04]} Nc6
{[%clk 01:31:03]} {[%emt 00:00:06]} 5. Bc4 {[%clk 01:32:40]} {[%emt 00:00:07]}
e6 {[%clk 01:31:20]} {[%emt 00:00:14]} 6. Nf3 {[%clk 01:33:00]} {[%emt
00:00:09]} a6 {[%clk 01:31:31]} {[%emt 00:00:19]} 7. O-O {[%clk 01:32:30]}
{[%emt 00:00:59]} Nge7 {[%clk 01:31:09]} {[%emt 00:00:53]} 8. Bg5 {[%clk
01:30:31]} {[%emt 00:02:29]} f6 {[%clk 01:31:23]} {[%emt 00:00:17]} 9. Bh4
{[%clk 01:29:38]} {[%emt 00:01:22]} Ng6 {[%clk 01:31:38]} {[%emt 00:00:16]} 10.
Qe2 {[%clk 01:28:04]} {[%emt 00:02:03]} Be7 {[%clk 01:28:23]} {[%emt 00:03:45]}
11. Rfd1 {[%clk 01:25:49]} {[%emt 00:02:45]} Qc7 {[%clk 01:19:00]} {[%emt
00:09:53]} 12. Bg3 {[%clk 01:17:43]} {[%emt 00:08:35]} Nce5 {[%clk 01:15:30]}
{[%emt 00:04:00]} 13. Nxe5 {[%clk 01:12:36]} {[%emt 00:05:38]} Nxe5 {[%clk
01:14:58]} {[%emt 00:01:02]} 14. Bb3 {[%clk 01:11:26]} {[%emt 00:01:40]} O-O
{[%clk 01:09:41]} {[%emt 00:05:47]} 15. Nd5 {[%clk 00:56:48]} {[%emt 00:15:08]}
exd5 {[%clk 01:06:25]} {[%emt 00:03:45]} 16. Rxd5 {[%clk 00:57:02]} {[%emt
00:00:17]} Kh8 {[%clk 01:05:28]} {[%emt 00:01:27]} 17. f4 {[%clk 00:56:02]}
{[%emt 00:01:30]} Nc6 {[%clk 01:01:48]} {[%emt 00:04:09]} 18. Rh5 {[%clk
00:54:25]} {[%emt 00:02:07]} g6 {[%clk 00:55:37]} {[%emt 00:06:42]} 19. f5
{[%clk 00:50:44]} {[%emt 00:04:11]} Qb6+ {[%clk 00:47:29]} {[%emt 00:08:38]} 20.
Bf2 {[%clk 00:50:40]} {[%emt 00:00:34]} Nd4 {[%clk 00:46:53]} {[%emt 00:01:05]}
21. Rxh7+ {[%clk 00:43:17]} {[%emt 00:07:54]} Kxh7 {[%clk 00:47:15]} {[%emt
00:00:08]} 22. Qg4 {[%clk 00:40:07]} {[%emt 00:03:39]} Rg8 {[%clk 00:39:16]}
{[%emt 00:08:29]} 23. Bxg8+ {[%clk 00:35:30]} {[%emt 00:05:07]} Kxg8 {[%clk
00:39:38]} {[%emt 00:00:08]} 24. Qxg6+ {[%clk 00:35:45]} {[%emt 00:00:15]} Kf8
{[%clk 00:39:53]} {[%emt 00:00:15]} 25. Qh6+ {[%clk 00:35:36]} {[%emt
00:00:39]} Ke8 {[%clk 00:40:10]} {[%emt 00:00:13]} 26. Qg6+ {[%clk 00:33:10]}
{[%emt 00:02:56]} Kd8 {[%clk 00:39:10]} {[%emt 00:01:31]} 27. Qg8+ {[%clk
00:28:49]} {[%emt 00:04:48]} Kc7 {[%clk 00:37:09]} {[%emt 00:02:32]} 28. Rc1+
{[%clk 00:24:08]} {[%emt 00:05:12]} Bc5 {[%clk 00:32:20]} {[%emt 00:05:19]} 29.
Bxd4 {[%clk 00:16:34]} {[%emt 00:08:04]} d6 {[%clk 00:24:32]} {[%emt 00:08:18]}
30. Qd5 {[%clk 00:05:55]} {[%emt 00:11:10]} Bd7 {[%clk 00:22:07]} {[%emt
00:02:55]} 31. e5 {[%clk 00:02:17]} {[%emt 00:04:08]} fxe5 {[%clk 00:16:52]}
{[%emt 00:05:45]} 32. Bxc5 {[%clk 00:02:02]} {[%emt 00:00:45]} dxc5 {[%clk
00:15:30]} {[%emt 00:01:51]} 33. Qxe5+ {[%clk 00:02:06]} {[%emt 00:00:26]} Kc6
{[%clk 00:15:27]} {[%emt 00:00:34]} 34. f6 {[%clk 00:01:23]} {[%emt 00:01:13]}
Re8 {[%clk 00:13:54]} {[%emt 00:02:03]} 35. Qf4 {[%clk 00:00:34]} {[%emt
00:01:18]} Qxb2 {[%clk 00:11:39]} {[%emt 00:02:45]} 36. f7 {[%clk 00:00:37]}
{[%emt 00:00:28]} Rf8 {[%clk 00:11:01]} {[%emt 00:01:08]} 37. Qh6+ {[%clk
00:00:57]} {[%emt 00:00:09]} Kb5 {[%clk 00:10:31]} {[%emt 00:01:01]} 38. Rd1
{[%clk 00:00:42]} {[%emt 00:00:45]} Rxf7 {[%clk 00:08:37]} {[%emt 00:02:24]} 39.
Qh4 {[%emt 00:02:05]} 0-1

[Event "Nové Hrady - Open"]
[Site "Nové Hrady, Czech Republic"]
[Date "2024.08.16"]
[Round "6.7"]
[White "Hokr, Matyáš"]
[Black "Junek, Petr"]
[Result "1-0"]
[TimeControl "2x90min+30s"]
[WhiteFideId "23734663"]
[BlackFideId "23739282"]
[WhiteElo "1641"]
[BlackElo "1775"]

1. c4 {[%clk 01:30:59]} {[%emt 00:38:28]} c5 {[%clk 01:30:44]} {[%emt
00:00:17]} 2. Nc3 {[%clk 01:30:30]} {[%emt 00:00:58]} Nc6 {[%clk 01:31:09]}
{[%emt 00:00:05]} 3. e3 {[%clk 01:30:22]} {[%emt 00:00:38]} e5 {[%clk
01:29:59]} {[%emt 00:01:40]} 4. Nge2 {[%clk 01:29:27]} {[%emt 00:01:24]} Nge7
{[%clk 01:26:35]} {[%emt 00:03:56]} 5. d4 {[%clk 01:28:26]} {[%emt 00:01:31]}
cxd4 {[%clk 01:26:44]} {[%emt 00:00:21]} 6. exd4 {[%clk 01:28:44]} {[%emt
00:00:11]} exd4 {[%clk 01:26:56]} {[%emt 00:00:19]} 7. Nxd4 {[%clk 01:29:01]}
{[%emt 00:00:13]} g6 {[%clk 01:27:10]} {[%emt 00:00:15]} 8. Ndb5 {[%clk
01:26:59]} {[%emt 00:02:32]} Nf5 {[%clk 01:25:12]} {[%emt 00:02:28]} 9. Nd5
{[%clk 01:23:34]} {[%emt 00:03:55]} Bd6 {[%clk 01:24:04]} {[%emt 00:01:38]} 10.
Qe2+ {[%clk 01:23:16]} {[%emt 00:00:48]} Nce7 {[%clk 01:23:47]} {[%emt
00:00:47]} 11. Nxd6+ {[%clk 01:22:59]} {[%emt 00:00:47]} Nxd6 {[%clk 01:23:57]}
{[%emt 00:00:21]} 12. Qe5 {[%clk 01:23:22]} {[%emt 00:00:06]} Qa5+ {[%clk
01:04:19]} {[%emt 00:20:08]} 13. b4 {[%clk 01:23:24]} {[%emt 00:00:28]} 1-0

[Event "Nové Hrady - Open"]
[Site "Nové Hrady, Czech Republic"]
[Date "2024.08.16"]
[Round "6.8"]
[White "Dudarec, Elias"]
[Black "Černý, Zbyšek"]
[Result "0-1"]
[TimeControl "2x90min+30s"]
[WhiteFideId "23714930"]
[BlackFideId "23739380"]
[WhiteElo "1750"]
[BlackElo "1582"]

1. d4 {[%clk 01:30:58]} {[%emt 00:00:02]} d5 {[%clk 01:30:51]} {[%emt
00:00:10]} 2. Bf4 {[%clk 01:31:22]} {[%emt 00:00:06]} e6 {[%clk 01:31:00]}
{[%emt 00:00:20]} 3. Nf3 {[%clk 01:31:31]} {[%emt 00:00:21]} c5 {[%clk
01:31:18]} {[%emt 00:00:13]} 4. e3 {[%clk 01:31:12]} {[%emt 00:00:49]} Nf6
{[%clk 01:31:01]} {[%emt 00:00:47]} 5. c3 {[%clk 01:31:29]} {[%emt 00:00:13]}
Nc6 {[%clk 01:31:03]} {[%emt 00:00:28]} 6. Bd3 {[%clk 01:31:17]} {[%emt
00:00:42]} Be7 {[%clk 01:29:45]} {[%emt 00:01:46]} 7. O-O {[%clk 01:31:32]}
{[%emt 00:00:14]} O-O {[%clk 01:30:06]} {[%emt 00:00:10]} 8. Nbd2 {[%clk
01:31:37]} {[%emt 00:00:25]} a6 {[%clk 01:29:38]} {[%emt 00:00:59]} 9. a4
{[%clk 01:30:57]} {[%emt 00:01:10]} b6 {[%clk 01:27:39]} {[%emt 00:02:29]} 10.
Ne5 {[%clk 01:24:40]} {[%emt 00:06:48]} Bb7 {[%clk 01:26:39]} {[%emt 00:01:29]}
11. Ndf3 {[%clk 01:22:18]} {[%emt 00:02:52]} Rc8 {[%clk 01:21:53]} {[%emt
00:05:15]} 12. Nxc6 {[%clk 01:19:29]} {[%emt 00:03:21]} Rxc6 {[%clk 01:20:42]}
{[%emt 00:01:40]} 13. Ne5 {[%clk 01:16:20]} {[%emt 00:03:39]} Rc8 {[%clk
01:21:00]} {[%emt 00:00:12]} 14. Qf3 {[%clk 01:13:10]} {[%emt 00:03:39]} Ne4
{[%clk 01:18:20]} {[%emt 00:03:11]} 15. Qh3 {[%clk 01:13:05]} {[%emt 00:00:35]}
h6 {[%clk 01:17:21]} {[%emt 00:01:30]} 16. f3 {[%clk 01:10:41]} {[%emt
00:02:53]} Ng5 {[%clk 01:13:47]} {[%emt 00:04:04]} 17. Qg3 {[%clk 01:08:44]}
{[%emt 00:02:28]} Kh8 {[%clk 01:11:27]} {[%emt 00:02:48]} 18. h4 {[%clk
01:05:59]} {[%emt 00:03:17]} Nh7 {[%clk 01:11:11]} {[%emt 00:00:45]} 19. Nxf7+
{[%clk 01:06:02]} {[%emt 00:00:28]} Rxf7 {[%clk 01:09:01]} {[%emt 00:02:39]} 20.
Qg6 {[%clk 01:04:27]} {[%emt 00:02:05]} Qg8 {[%clk 01:09:14]} {[%emt 00:00:17]}
21. Qxe6 {[%clk 00:59:57]} {[%emt 00:05:00]} Bxh4 {[%clk 01:08:14]} {[%emt
00:01:30]} 22. g3 {[%clk 00:44:44]} {[%emt 00:15:43]} Bd8 {[%clk 01:06:19]}
{[%emt 00:02:25]} 23. Kf2 {[%clk 00:40:55]} {[%emt 00:04:20]} Re7 {[%clk
01:04:47]} {[%emt 00:02:01]} 24. Qg4 {[%clk 00:36:15]} {[%emt 00:05:10]} Nf6
{[%clk 01:03:56]} {[%emt 00:01:21]} 25. Qf5 {[%clk 00:35:02]} {[%emt 00:01:42]}
Rc6 {[%clk 01:01:27]} {[%emt 00:03:00]} 26. Qh3 {[%clk 00:31:05]} {[%emt
00:04:28]} Bc8 {[%clk 00:59:33]} {[%emt 00:02:22]} 27. g4 {[%clk 00:30:01]}
{[%emt 00:01:36]} Bc7 {[%clk 00:56:15]} {[%emt 00:03:47]} 28. Bg5 {[%clk
00:21:19]} {[%emt 00:09:11]} Rf7 {[%clk 00:53:16]} {[%emt 00:03:29]} 29. Ke2
{[%clk 00:20:31]} {[%emt 00:01:19]} Qf8 {[%clk 00:45:06]} {[%emt 00:08:39]} 30.
Bg6 {[%clk 00:18:34]} {[%emt 00:02:28]} Rd7 {[%clk 00:43:05]} {[%emt 00:02:30]}
31. Rh1 {[%clk 00:16:25]} {[%emt 00:02:39]} Nh7 {[%clk 00:40:57]} {[%emt
00:02:38]} 32. Bxh7 {[%clk 00:16:33]} {[%emt 00:00:22]} Kxh7 {[%clk 00:41:12]}
{[%emt 00:00:16]} 33. f4 {[%clk 00:16:05]} {[%emt 00:00:57]} cxd4 {[%clk
00:41:00]} {[%emt 00:00:42]} 34. exd4 {[%clk 00:15:06]} {[%emt 00:01:30]} Qe8+
{[%clk 00:40:39]} {[%emt 00:00:49]} 35. Kd2 {[%clk 00:15:16]} {[%emt 00:00:22]}
Qe4 {[%clk 00:40:10]} {[%emt 00:00:56]} 36. Qg3 {[%clk 00:15:08]} {[%emt
00:00:41]} Kg8 {[%clk 00:39:37]} {[%emt 00:01:03]} 37. Rae1 {[%clk 00:15:14]}
{[%emt 00:00:24]} Qg6 {[%clk 00:39:14]} {[%emt 00:00:52]} 38. Bh4 {[%clk
00:14:22]} {[%emt 00:01:22]} Rf7 {[%clk 00:36:42]} {[%emt 00:03:03]} 39. Bg5
{[%clk 00:08:32]} {[%emt 00:06:21]} hxg5 {[%clk 00:34:08]} {[%emt 00:03:03]} 40.
Re8+ {[%clk 00:08:26]} {[%emt 00:00:35]} Rf8 {[%clk 00:34:26]} {[%emt
00:00:12]} 41. Rh8+ {[%clk 00:08:20]} {[%emt 00:00:37]} Kxh8 {[%clk 00:34:35]}
{[%emt 00:00:21]} 42. Rxf8+ {[%clk 00:08:28]} {[%emt 00:00:21]} Kh7 {[%clk
00:34:50]} {[%emt 00:00:16]} 43. Qh3+ {[%clk 00:08:39]} {[%emt 00:00:19]} Qh6
{[%clk 00:35:04]} {[%emt 00:00:16]} 44. Qd3+ {[%clk 00:08:42]} {[%emt
00:00:27]} g6 {[%clk 00:32:12]} {[%emt 00:03:21]} 45. fxg5 {[%clk 00:09:00]}
{[%emt 00:00:12]} Qxf8 {[%clk 00:32:25]} {[%emt 00:00:17]} 0-1